[Event "*** Titled Tuesday Blitz"]
[Site "Chess.com"]
[Date "2021.04.06"]
[Round "3"]
[White "LordIron"]
[Black "MasterKroket"]
[Result "0-1"]
[WhiteElo "2248"]
[BlackElo "2519"]
[TimeControl "180+1"]
[EndTime "10:29:14 PDT"]
[Termination "MasterKroket won on time"]

1. d4 {[%clk 0:02:58.9]} 1... Nf6 {[%clk 0:02:59.9]} 2. Nf3 {[%clk 0:02:59.1]}
2... e6 {[%clk 0:03:00.3]} 3. g3 {[%clk 0:02:59.4]} 3... d5 {[%clk 0:03:00]} 4.
Bg2 {[%clk 0:03:00]} 4... Be7 {[%clk 0:03:00.7]} 5. O-O {[%clk 0:03:00.5]} 5...
O-O {[%clk 0:03:01.3]} 6. c4 {[%clk 0:02:59.8]} 6... dxc4 {[%clk 0:03:02.2]} 7.
Qc2 {[%clk 0:02:59]} 7... a6 {[%clk 0:03:02.6]} 8. Rd1 {[%clk 0:02:53.7]} 8...
b5 {[%clk 0:03:00.9]} 9. Ne5 {[%clk 0:02:53.6]} 9... Nd5 {[%clk 0:03:01.2]} 10.
b3 {[%clk 0:02:52.2]} 10... cxb3 {[%clk 0:02:59.7]} 11. Qxb3 {[%clk 0:02:51.9]}
11... Bb7 {[%clk 0:02:59.8]} 12. a4 {[%clk 0:02:52]} 12... b4 {[%clk 0:02:51.2]}
13. a5 {[%clk 0:02:51]} 13... Nc6 {[%clk 0:02:29.3]} 14. Nxc6 {[%clk 0:02:47.6]}
14... Bxc6 {[%clk 0:02:30.2]} 15. Nd2 {[%clk 0:02:47.2]} 15... Qe8 {[%clk
0:02:15.7]} 16. Bb2 {[%clk 0:02:35.3]} 16... Nc3 {[%clk 0:02:06.4]} 17. Bxc3
{[%clk 0:02:32.5]} 17... Bxg2 {[%clk 0:02:06.3]} 18. Kxg2 {[%clk 0:02:27.7]}
18... Qc6+ {[%clk 0:02:06.1]} 19. Nf3 {[%clk 0:02:28.1]} 19... Qxc3 {[%clk
0:01:58.6]} 20. Qxc3 {[%clk 0:02:09.1]} 20... bxc3 {[%clk 0:01:59.5]} 21. Ra4
{[%clk 0:02:06.6]} 21... Rab8 {[%clk 0:01:58.7]} 22. Ne5 {[%clk 0:01:56.9]}
22... Rb2 {[%clk 0:01:54.2]} 23. e3 {[%clk 0:01:49.6]} 23... c5 {[%clk
0:01:48.2]} 24. dxc5 {[%clk 0:01:43]} 24... Bxc5 {[%clk 0:01:15.4]} 25. Nd3
{[%clk 0:01:35.3]} 25... Rd2 {[%clk 0:01:10.5]} 26. Rxd2 {[%clk 0:00:39.3]}
26... cxd2 {[%clk 0:01:11.4]} 27. Ra1 {[%clk 0:00:38.7]} 27... Rd8 {[%clk
0:01:11.5]} 28. Nb2 {[%clk 0:00:34.8]} 28... Bb4 {[%clk 0:01:11.9]} 29. Nd1
{[%clk 0:00:33.8]} 29... Rd5 {[%clk 0:01:08.3]} 30. Rb1 {[%clk 0:00:31.9]} 30...
Bxa5 {[%clk 0:01:08.5]} 31. Rb8+ {[%clk 0:00:29.1]} 31... Rd8 {[%clk 0:01:06.8]}
32. Rb7 {[%clk 0:00:26.7]} 32... Ra8 {[%clk 0:01:03.5]} 33. Kf3 {[%clk
0:00:24.4]} 33... h5 {[%clk 0:01:00.8]} 34. Ke2 {[%clk 0:00:23.8]} 34... g6
{[%clk 0:01:00.5]} 35. Nb2 {[%clk 0:00:14.1]} 35... Bc3 {[%clk 0:00:59.3]} 36.
Na4 {[%clk 0:00:14.1]} 36... Rc8 {[%clk 0:00:45.9]} 37. Nxc3 {[%clk 0:00:11.5]}
37... Rxc3 {[%clk 0:00:45.3]} 38. Kxd2 {[%clk 0:00:12.4]} 38... Ra3 {[%clk
0:00:45.1]} 39. Rb8+ {[%clk 0:00:09.3]} 39... Kg7 {[%clk 0:00:44.5]} 40. Ke2
{[%clk 0:00:09.6]} 40... g5 {[%clk 0:00:43.1]} 41. h3 {[%clk 0:00:09.2]} 41...
g4 {[%clk 0:00:42.9]} 42. hxg4 {[%clk 0:00:09.6]} 42... hxg4 {[%clk 0:00:43.8]}
43. Ra8 {[%clk 0:00:08.4]} 43... Ra2+ {[%clk 0:00:44]} 44. Kd3 {[%clk
0:00:08.2]} 44... Rxf2 {[%clk 0:00:42.4]} 45. Rxa6 {[%clk 0:00:08.1]} 45... Rf3
{[%clk 0:00:42.4]} 46. Ra4 {[%clk 0:00:07.9]} 46... Rxg3 {[%clk 0:00:42.3]} 47.
Ke4 {[%clk 0:00:06.7]} 47... f5+ {[%clk 0:00:40.7]} 48. Kf4 {[%clk 0:00:06.9]}
48... Rf3+ {[%clk 0:00:41]} 49. Kg5 {[%clk 0:00:07.6]} 49... Rxe3 {[%clk
0:00:38.5]} 50. Ra7+ {[%clk 0:00:07.4]} 50... Kf8 {[%clk 0:00:38.8]} 51. Kf6
{[%clk 0:00:06.7]} 51... Ke8 {[%clk 0:00:39.3]} 52. Rb7 {[%clk 0:00:02.2]} 52...
g3 {[%clk 0:00:37.9]} 53. Rg7 {[%clk 0:00:01.8]} 53... f4 {[%clk 0:00:37.2]} 0-1

[Event "*** Titled Tuesday Blitz"]
[Site "Chess.com"]
[Date "2021.04.06"]
[Round "3"]
[White "jefferyx"]
[Black "Didici"]
[Result "1-0"]
[WhiteElo "2971"]
[BlackElo "2665"]
[TimeControl "180+1"]
[EndTime "10:29:15 PDT"]
[Termination "jefferyx won by resignation"]

1. d4 {[%clk 0:02:28.9]} 1... Nf6 {[%clk 0:02:54.2]} 2. c4 {[%clk 0:02:27.8]}
2... e6 {[%clk 0:02:54.4]} 3. Nc3 {[%clk 0:02:27.8]} 3... Bb4 {[%clk 0:02:53.6]}
4. Nf3 {[%clk 0:02:26.9]} 4... b6 {[%clk 0:02:51.5]} 5. Qc2 {[%clk 0:02:25.4]}
5... Bb7 {[%clk 0:02:50.5]} 6. a3 {[%clk 0:02:24.5]} 6... Bxc3+ {[%clk
0:02:45.1]} 7. Qxc3 {[%clk 0:02:25.4]} 7... Ne4 {[%clk 0:02:43.7]} 8. Qc2 {[%clk
0:02:25.2]} 8... O-O {[%clk 0:02:43.2]} 9. e3 {[%clk 0:02:23.8]} 9... f5 {[%clk
0:02:42.8]} 10. Be2 {[%clk 0:02:23.4]} 10... d6 {[%clk 0:02:41.9]} 11. O-O
{[%clk 0:02:23.6]} 11... Nd7 {[%clk 0:02:40.9]} 12. Ne1 {[%clk 0:02:23.7]} 12...
c5 {[%clk 0:02:24.8]} 13. f3 {[%clk 0:02:08.4]} 13... Ng5 {[%clk 0:02:15.9]} 14.
dxc5 {[%clk 0:01:46.9]} 14... dxc5 {[%clk 0:01:59.1]} 15. b4 {[%clk 0:01:47.8]}
15... Qe7 {[%clk 0:01:58.1]} 16. Nd3 {[%clk 0:01:44.5]} 16... e5 {[%clk
0:01:56.8]} 17. Nf2 {[%clk 0:01:05.7]} 17... e4 {[%clk 0:01:12.3]} 18. f4 {[%clk
0:00:55.3]} 18... Nf3+ {[%clk 0:01:11.9]} 19. Kh1 {[%clk 0:00:41.9]} 19... Nd4
{[%clk 0:00:38.5]} 20. exd4 {[%clk 0:00:40.9]} 20... cxd4 {[%clk 0:00:39.4]} 21.
Bb2 {[%clk 0:00:37.3]} 21... d3 {[%clk 0:00:36]} 22. Nxd3 {[%clk 0:00:36.9]}
22... exd3 {[%clk 0:00:36.9]} 23. Bxd3 {[%clk 0:00:37.7]} 23... Qf7 {[%clk
0:00:33.6]} 24. Rae1 {[%clk 0:00:33.2]} 24... Rac8 {[%clk 0:00:33.2]} 25. Qc3
{[%clk 0:00:30.7]} 25... Qg6 {[%clk 0:00:26.2]} 26. Rf2 {[%clk 0:00:26.1]} 26...
Nf6 {[%clk 0:00:25.7]} 27. Re7 {[%clk 0:00:25.3]} 27... Rf7 {[%clk 0:00:14.1]}
28. Rxf7 {[%clk 0:00:20.1]} 28... Kxf7 {[%clk 0:00:15]} 29. Qd4 {[%clk
0:00:10.5]} 29... Re8 {[%clk 0:00:13.7]} 30. h3 {[%clk 0:00:05.7]} 30... Qg3
{[%clk 0:00:11.9]} 31. Bc3 {[%clk 0:00:04.8]} 31... Qxh3+ {[%clk 0:00:09.7]} 32.
Kg1 {[%clk 0:00:05]} 32... Qg4 {[%clk 0:00:07.2]} 33. Bf1 {[%clk 0:00:04.1]}
33... Ne4 {[%clk 0:00:05.6]} 34. Re2 {[%clk 0:00:01.5]} 34... Re7 {[%clk
0:00:05.4]} 35. c5 {[%clk 0:00:01.4]} 35... bxc5 {[%clk 0:00:04.9]} 36. bxc5
{[%clk 0:00:02.3]} 36... Bc6 {[%clk 0:00:04.8]} 37. Qc4+ {[%clk 0:00:02.7]}
37... Kg6 {[%clk 0:00:04.9]} 38. Be5 {[%clk 0:00:03.6]} 38... Qg3 {[%clk
0:00:02.8]} 39. Qd4 {[%clk 0:00:03]} 39... Qxa3 {[%clk 0:00:01.8]} 40. Bd6
{[%clk 0:00:02.5]} 40... Re6 {[%clk 0:00:01.5]} 41. Re3 {[%clk 0:00:03]} 41...
Rxd6 {[%clk 0:00:01.4]} 42. Qxd6+ {[%clk 0:00:02.6]} 42... Nxd6 {[%clk
0:00:01.1]} 43. Rxa3 {[%clk 0:00:03.5]} 43... Nb5 {[%clk 0:00:01.1]} 44. Ra6
{[%clk 0:00:03.7]} 44... Kf7 {[%clk 0:00:01.8]} 45. Rxc6 {[%clk 0:00:03.4]}
45... a5 {[%clk 0:00:02.7]} 46. Bxb5 {[%clk 0:00:02.9]} 46... a4 {[%clk
0:00:03.6]} 47. Rc7+ {[%clk 0:00:03.6]} 47... Ke6 {[%clk 0:00:03.5]} 48. Bxa4
{[%clk 0:00:04.5]} 48... Kd5 {[%clk 0:00:04.4]} 49. Bb3+ {[%clk 0:00:05.4]} 1-0

[Event "*** Titled Tuesday Blitz"]
[Site "Chess.com"]
[Date "2021.04.06"]
[Round "3"]
[White "Firegrizzly"]
[Black "RD4ever"]
[Result "0-1"]
[WhiteElo "2625"]
[BlackElo "2891"]
[TimeControl "180+1"]
[EndTime "10:29:15 PDT"]
[Termination "RD4ever won by checkmate"]

1. e4 {[%clk 0:02:59.4]} 1... e6 {[%clk 0:02:55.6]} 2. d4 {[%clk 0:02:57.8]}
2... d5 {[%clk 0:02:55.8]} 3. exd5 {[%clk 0:02:53.5]} 3... exd5 {[%clk
0:02:56.7]} 4. Nf3 {[%clk 0:02:53.6]} 4... Nc6 {[%clk 0:02:56.1]} 5. Bb5 {[%clk
0:02:53.3]} 5... Bd6 {[%clk 0:02:56]} 6. O-O {[%clk 0:02:53]} 6... Ne7 {[%clk
0:02:56.2]} 7. c4 {[%clk 0:02:53.6]} 7... dxc4 {[%clk 0:02:56.5]} 8. d5 {[%clk
0:02:53]} 8... Nxd5 {[%clk 0:02:56.6]} 9. Bxc4 {[%clk 0:02:42.5]} 9... Nde7
{[%clk 0:02:38.9]} 10. Ng5 {[%clk 0:02:35.6]} 10... Ne5 {[%clk 0:02:37.8]} 11.
Bb3 {[%clk 0:02:32.6]} 11... O-O {[%clk 0:02:18.6]} 12. Nc3 {[%clk 0:02:32.7]}
12... Bg4 {[%clk 0:02:08.3]} 13. f3 {[%clk 0:02:21.3]} 13... Bc5+ {[%clk
0:02:01.7]} 14. Kh1 {[%clk 0:02:21.1]} 14... Qxd1 {[%clk 0:01:58.6]} 15. Rxd1
{[%clk 0:02:22]} 15... Bh5 {[%clk 0:01:58.3]} 16. Bf4 {[%clk 0:02:18.8]} 16...
N7g6 {[%clk 0:01:41.2]} 17. Bxe5 {[%clk 0:02:04]} 17... Nxe5 {[%clk 0:01:39.8]}
18. Rd5 {[%clk 0:02:04.6]} 18... Bd6 {[%clk 0:01:38.8]} 19. Nb5 {[%clk
0:02:01.3]} 19... Rad8 {[%clk 0:01:36.2]} 20. Rad1 {[%clk 0:01:56.7]} 20... Bg6
{[%clk 0:01:15.8]} 21. Nxd6 {[%clk 0:01:48.1]} 21... cxd6 {[%clk 0:01:16.7]} 22.
Rxd6 {[%clk 0:01:48]} 22... Rxd6 {[%clk 0:01:16.6]} 23. Rxd6 {[%clk 0:01:48.8]}
23... h6 {[%clk 0:01:17.3]} 24. Nh3 {[%clk 0:01:39.5]} 24... Rc8 {[%clk
0:01:16.7]} 25. Nf4 {[%clk 0:01:34.2]} 25... Bc2 {[%clk 0:01:11.5]} 26. Bd5
{[%clk 0:01:25.4]} 26... Kf8 {[%clk 0:01:00.6]} 27. Bxb7 {[%clk 0:01:13.2]}
27... Rb8 {[%clk 0:00:58]} 28. Bd5 {[%clk 0:01:11.5]} 28... Rxb2 {[%clk
0:00:53.4]} 29. h4 {[%clk 0:01:10.5]} 29... Rb4 {[%clk 0:00:46.2]} 30. g3 {[%clk
0:01:07.6]} 30... Rd4 {[%clk 0:00:46.2]} 31. Rd8+ {[%clk 0:01:02.1]} 31... Ke7
{[%clk 0:00:45.3]} 32. Ra8 {[%clk 0:01:02.8]} 32... g5 {[%clk 0:00:41.8]} 33.
hxg5 {[%clk 0:00:59.8]} 33... hxg5 {[%clk 0:00:41.9]} 34. Rxa7+ {[%clk
0:01:00.5]} 34... Kd6 {[%clk 0:00:30.7]} 35. Bxf7 {[%clk 0:00:50.3]} 35... gxf4
{[%clk 0:00:30.6]} 36. gxf4 {[%clk 0:00:48.1]} 36... Nxf3 {[%clk 0:00:29.7]} 37.
Kg2 {[%clk 0:00:46.5]} 37... Be4 {[%clk 0:00:28.9]} 38. Kg3 {[%clk 0:00:46]}
38... Rd3 {[%clk 0:00:28.7]} 39. Kg4 {[%clk 0:00:45.3]} 39... Nd4 {[%clk
0:00:28.6]} 40. Ra6+ {[%clk 0:00:43]} 40... Ke7 {[%clk 0:00:28.9]} 41. Bc4
{[%clk 0:00:41.3]} 41... Rc3 {[%clk 0:00:29.1]} 42. Bb3 {[%clk 0:00:40]} 42...
Bf5+ {[%clk 0:00:29.2]} 43. Kg5 {[%clk 0:00:38.5]} 43... Rg3+ {[%clk 0:00:29.4]}
44. Kh6 {[%clk 0:00:38.5]} 44... Be4 {[%clk 0:00:25.9]} 45. f5 {[%clk
0:00:37.5]} 45... Nxf5+ {[%clk 0:00:25.8]} 46. Kh5 {[%clk 0:00:35.1]} 46... Nd6
{[%clk 0:00:26.1]} 47. Ra7+ {[%clk 0:00:33.3]} 47... Kf6 {[%clk 0:00:25.9]} 48.
Bd1 {[%clk 0:00:33.3]} 48... Nf5 {[%clk 0:00:24.6]} 49. Ra6+ {[%clk 0:00:32.5]}
49... Ke5 {[%clk 0:00:24.7]} 50. Ra5+ {[%clk 0:00:31.2]} 50... Kf4 {[%clk
0:00:25]} 51. Rxf5+ {[%clk 0:00:24]} 51... Bxf5 {[%clk 0:00:25.9]} 52. Bg4
{[%clk 0:00:10.3]} 52... Rxg4 {[%clk 0:00:23.7]} 53. a4 {[%clk 0:00:08.4]} 53...
Rg7 {[%clk 0:00:23.6]} 54. a5 {[%clk 0:00:05.1]} 54... Rh7# {[%clk 0:00:24.5]}
0-1

[Event "*** Titled Tuesday Blitz"]
[Site "Chess.com"]
[Date "2021.04.06"]
[Round "3"]
[White "ZarinaShafigullina"]
[Black "Chesswizard_2007"]
[Result "0-1"]
[WhiteElo "2437"]
[BlackElo "2694"]
[TimeControl "180+1"]
[EndTime "10:29:20 PDT"]
[Termination "Chesswizard_2007 won on time"]

1. d4 {[%clk 0:03:00.9]} 1... Nf6 {[%clk 0:02:47.1]} 2. Nf3 {[%clk 0:03:00.4]}
2... g6 {[%clk 0:02:47.4]} 3. g3 {[%clk 0:03:00.5]} 3... Bg7 {[%clk 0:02:47.6]}
4. Bg2 {[%clk 0:03:01.4]} 4... O-O {[%clk 0:02:47.6]} 5. O-O {[%clk 0:03:02]}
5... c5 {[%clk 0:02:48.2]} 6. c4 {[%clk 0:03:00.4]} 6... Nc6 {[%clk 0:02:48.1]}
7. Nc3 {[%clk 0:02:59.9]} 7... cxd4 {[%clk 0:02:37.1]} 8. Nxd4 {[%clk
0:02:59.7]} 8... d6 {[%clk 0:02:37.7]} 9. Nxc6 {[%clk 0:02:55.8]} 9... bxc6
{[%clk 0:02:38.6]} 10. Bxc6 {[%clk 0:02:56.2]} 10... Rb8 {[%clk 0:02:39.3]} 11.
Bg2 {[%clk 0:02:55.5]} 11... Qa5 {[%clk 0:02:29]} 12. e4 {[%clk 0:02:36.6]}
12... Ba6 {[%clk 0:02:24]} 13. Qd3 {[%clk 0:02:25.4]} 13... Rfc8 {[%clk
0:02:22.4]} 14. b3 {[%clk 0:02:25.4]} 14... Nd7 {[%clk 0:02:10.5]} 15. Bd2
{[%clk 0:02:18.1]} 15... Ne5 {[%clk 0:02:01.1]} 16. Qc2 {[%clk 0:02:12]} 16...
e6 {[%clk 0:01:49.6]} 17. Rad1 {[%clk 0:02:08.1]} 17... Nxc4 {[%clk 0:01:32.6]}
18. bxc4 {[%clk 0:01:49]} 18... Rxc4 {[%clk 0:01:33.5]} 19. Rc1 {[%clk
0:01:39.5]} 19... Qc7 {[%clk 0:01:18.5]} 20. Qd3 {[%clk 0:01:21.7]} 20... Rc8
{[%clk 0:01:08.2]} 21. Ne2 {[%clk 0:00:42.6]} 21... Rxc1 {[%clk 0:00:58.7]} 22.
Qxa6 {[%clk 0:00:42.3]} 22... Rxf1+ {[%clk 0:00:59]} 23. Bxf1 {[%clk 0:00:42.1]}
23... Qc4 {[%clk 0:00:52.7]} 24. Qb7 {[%clk 0:00:22.5]} 24... Qc7 {[%clk
0:00:48.9]} 25. Qa6 {[%clk 0:00:20.6]} 25... Qc6 {[%clk 0:00:41.9]} 26. Qxc6
{[%clk 0:00:17.4]} 26... Rxc6 {[%clk 0:00:42.8]} 27. Bf4 {[%clk 0:00:17.4]}
27... Kf8 {[%clk 0:00:19.7]} 28. Be3 {[%clk 0:00:12.2]} 28... Bb2 {[%clk
0:00:18]} 29. Bxa7 {[%clk 0:00:11]} 29... Ra6 {[%clk 0:00:17.9]} 30. Bd4 {[%clk
0:00:09.6]} 30... Rxa2 {[%clk 0:00:17.9]} 31. Bxb2 {[%clk 0:00:08.9]} 31... Rxb2
{[%clk 0:00:18.8]} 32. Nd4 {[%clk 0:00:09]} 32... Ke7 {[%clk 0:00:19.7]} 33.
Nc6+ {[%clk 0:00:08.4]} 33... Kd7 {[%clk 0:00:19.5]} 34. Nd4 {[%clk 0:00:08.7]}
34... Rb4 {[%clk 0:00:19.2]} 35. Nc2 {[%clk 0:00:05.5]} 35... Rxe4 {[%clk
0:00:18.8]} 36. Ne3 {[%clk 0:00:05.7]} 36... d5 {[%clk 0:00:17.8]} 37. Bb5+
{[%clk 0:00:05.5]} 37... Ke7 {[%clk 0:00:17.9]} 38. Bd3 {[%clk 0:00:05.3]} 38...
Rb4 {[%clk 0:00:18.3]} 39. Kg2 {[%clk 0:00:05.2]} 39... f5 {[%clk 0:00:18.4]}
40. f4 {[%clk 0:00:04.1]} 40... Rb8 {[%clk 0:00:18.9]} 41. Kf3 {[%clk
0:00:03.9]} 41... Kd6 {[%clk 0:00:19.6]} 42. Nc2 {[%clk 0:00:03.4]} 42... h6
{[%clk 0:00:19.4]} 43. Ke3 {[%clk 0:00:03]} 43... g5 {[%clk 0:00:19.8]} 44. Nd4
{[%clk 0:00:02.5]} 44... g4 {[%clk 0:00:19]} 45. Ne2 {[%clk 0:00:01.8]} 45...
Rb2 {[%clk 0:00:19]} 46. Nd4 {[%clk 0:00:01.8]} 46... Rxh2 {[%clk 0:00:19.6]}
47. Nb5+ {[%clk 0:00:02]} 47... Ke7 {[%clk 0:00:19.1]} 48. Nc7 {[%clk
0:00:02.1]} 48... Rg2 {[%clk 0:00:17.9]} 0-1

[Event "*** Titled Tuesday Blitz"]
[Site "Chess.com"]
[Date "2021.04.06"]
[Round "3"]
[White "Chuchofrio1"]
[Black "Zmof"]
[Result "0-1"]
[WhiteElo "2370"]
[BlackElo "2211"]
[TimeControl "180+1"]
[EndTime "10:29:23 PDT"]
[Termination "Zmof won by checkmate"]

1. e4 {[%clk 0:03:00.2]} 1... c5 {[%clk 0:02:59.5]} 2. Nc3 {[%clk 0:02:59.9]}
2... a6 {[%clk 0:02:59.1]} 3. f4 {[%clk 0:02:59.6]} 3... b5 {[%clk 0:02:56.7]}
4. Nf3 {[%clk 0:02:58.9]} 4... Bb7 {[%clk 0:02:57.2]} 5. d3 {[%clk 0:02:58]}
5... e6 {[%clk 0:02:57.6]} 6. g3 {[%clk 0:02:57.1]} 6... d5 {[%clk 0:02:56.6]}
7. e5 {[%clk 0:02:51.8]} 7... h5 {[%clk 0:02:50]} 8. Bg2 {[%clk 0:02:50.8]} 8...
Ne7 {[%clk 0:02:50.4]} 9. O-O {[%clk 0:02:50.2]} 9... Nf5 {[%clk 0:02:50.6]} 10.
Ne2 {[%clk 0:02:43.9]} 10... Nc6 {[%clk 0:02:48.5]} 11. a4 {[%clk 0:02:43]}
11... b4 {[%clk 0:02:41.6]} 12. c3 {[%clk 0:02:41.7]} 12... a5 {[%clk
0:02:40.3]} 13. Bd2 {[%clk 0:02:37.2]} 13... Qb6 {[%clk 0:02:38]} 14. Kh1 {[%clk
0:02:34.7]} 14... Be7 {[%clk 0:02:36.7]} 15. h3 {[%clk 0:02:23.1]} 15... Rd8
{[%clk 0:02:26.5]} 16. Kh2 {[%clk 0:02:15.2]} 16... d4 {[%clk 0:02:04.6]} 17. c4
{[%clk 0:02:10.7]} 17... Ne3 {[%clk 0:02:03.6]} 18. Bxe3 {[%clk 0:02:08.7]}
18... dxe3 {[%clk 0:02:03.6]} 19. Ne1 {[%clk 0:02:08.8]} 19... Nd4 {[%clk
0:02:01.4]} 20. Nxd4 {[%clk 0:02:07.2]} 20... cxd4 {[%clk 0:01:57.1]} 21. Qe2
{[%clk 0:01:53.5]} 21... f6 {[%clk 0:01:36.3]} 22. b3 {[%clk 0:01:48]} 22... Rd7
{[%clk 0:01:15]} 23. Bf3 {[%clk 0:01:42.9]} 23... Bxf3 {[%clk 0:01:08.4]} 24.
Qxf3 {[%clk 0:01:43.8]} 24... h4 {[%clk 0:00:45]} 25. g4 {[%clk 0:01:37.3]}
25... fxe5 {[%clk 0:00:41.4]} 26. fxe5 {[%clk 0:01:24.6]} 26... Rf8 {[%clk
0:00:41.1]} 27. Qa8+ {[%clk 0:01:24.5]} 27... Rd8 {[%clk 0:00:40.3]} 28. Rxf8+
{[%clk 0:01:23.5]} 28... Kxf8 {[%clk 0:00:40]} 29. Qe4 {[%clk 0:01:21.6]} 29...
Kg8 {[%clk 0:00:27]} 30. Ng2 {[%clk 0:01:15.1]} 30... Rf8 {[%clk 0:00:24.4]} 31.
Nf4 {[%clk 0:01:03]} 31... Bg5 {[%clk 0:00:23.6]} 32. Nh5 {[%clk 0:00:44.3]}
32... Rf2+ {[%clk 0:00:22.4]} 33. Kg1 {[%clk 0:00:43.3]} 33... Qd8 {[%clk
0:00:15.6]} 34. c5 {[%clk 0:00:26.9]} 34... Qe7 {[%clk 0:00:15.3]} 35. c6 {[%clk
0:00:24.6]} 35... Qf7 {[%clk 0:00:15.5]} 36. Rc1 {[%clk 0:00:19.2]} 36... e2
{[%clk 0:00:14.8]} 37. c7 {[%clk 0:00:17.5]} 37... Rf1+ {[%clk 0:00:14.2]} 38.
Kh2 {[%clk 0:00:16.8]} 38... Qf2+ {[%clk 0:00:13.8]} 39. Qg2 {[%clk 0:00:17.1]}
39... Qxg2+ {[%clk 0:00:14.1]} 40. Kxg2 {[%clk 0:00:18]} 40... Rxc1 {[%clk
0:00:14.7]} 41. c8=Q+ {[%clk 0:00:18.6]} 41... Rxc8 {[%clk 0:00:14.3]} 42. Kf2
{[%clk 0:00:19.5]} 42... Rc2 {[%clk 0:00:13.3]} 43. Ke1 {[%clk 0:00:20]} 43...
Be3 {[%clk 0:00:10]} 44. g5 {[%clk 0:00:19.3]} 44... Bxg5 {[%clk 0:00:09.6]} 45.
Kf2 {[%clk 0:00:18.6]} 45... Kf7 {[%clk 0:00:09.5]} 46. Ke1 {[%clk 0:00:18.9]}
46... Kg6 {[%clk 0:00:09.8]} 47. Nf4+ {[%clk 0:00:18.9]} 47... Bxf4 {[%clk
0:00:09.9]} 48. Kf2 {[%clk 0:00:19.3]} 48... Bxe5 {[%clk 0:00:09.5]} 49. Ke1
{[%clk 0:00:19.4]} 49... Kf5 {[%clk 0:00:09.2]} 50. Kf2 {[%clk 0:00:19]} 50...
Kf4 {[%clk 0:00:08.2]} 51. Ke1 {[%clk 0:00:19.9]} 51... Rb2 {[%clk 0:00:08.2]}
52. Kf2 {[%clk 0:00:20]} 52... Rxb3 {[%clk 0:00:08.7]} 53. Ke1 {[%clk
0:00:20.9]} 53... Ra3 {[%clk 0:00:09.1]} 54. Kd2 {[%clk 0:00:21.2]} 54... Rxa4
{[%clk 0:00:09.4]} 55. Ke1 {[%clk 0:00:21.4]} 55... Ra1+ {[%clk 0:00:09.2]} 56.
Kf2 {[%clk 0:00:21.4]} 56... e1=Q+ {[%clk 0:00:08.9]} 57. Kg2 {[%clk 0:00:21.8]}
57... Qh1+ {[%clk 0:00:08.8]} 58. Kf2 {[%clk 0:00:21.4]} 58... Rf1+ {[%clk
0:00:09.4]} 59. Ke2 {[%clk 0:00:21.9]} 59... Qg2# {[%clk 0:00:10.1]} 0-1

[Event "*** Titled Tuesday Blitz"]
[Site "Chess.com"]
[Date "2021.04.06"]
[Round "3"]
[White "Darius321"]
[Black "Alexander_Zubov"]
[Result "1/2-1/2"]
[WhiteElo "2286"]
[BlackElo "2981"]
[TimeControl "180+1"]
[EndTime "10:29:25 PDT"]
[Termination "Game drawn by repetition"]

1. e4 {[%clk 0:03:00.9]} 1... e5 {[%clk 0:02:57.5]} 2. Nf3 {[%clk 0:03:00.4]}
2... Nc6 {[%clk 0:02:57]} 3. Bc4 {[%clk 0:03:00.1]} 3... Bc5 {[%clk 0:02:56.3]}
4. d3 {[%clk 0:02:57.7]} 4... Nf6 {[%clk 0:02:55.7]} 5. c3 {[%clk 0:02:55.3]}
5... d6 {[%clk 0:02:55]} 6. Nbd2 {[%clk 0:02:50.9]} 6... O-O {[%clk 0:02:50.3]}
7. Nf1 {[%clk 0:02:50.3]} 7... Ng4 {[%clk 0:02:43.5]} 8. Ne3 {[%clk 0:02:46]}
8... Nxe3 {[%clk 0:02:42]} 9. Bxe3 {[%clk 0:02:46]} 9... Bxe3 {[%clk 0:02:41.9]}
10. fxe3 {[%clk 0:02:46.9]} 10... a6 {[%clk 0:02:28.9]} 11. a3 {[%clk
0:02:46.6]} 11... Qe7 {[%clk 0:02:25.5]} 12. O-O {[%clk 0:02:45.1]} 12... Be6
{[%clk 0:02:17.4]} 13. Bxe6 {[%clk 0:02:37.7]} 13... Qxe6 {[%clk 0:02:16.4]} 14.
c4 {[%clk 0:02:33.3]} 14... a5 {[%clk 0:02:12.2]} 15. b3 {[%clk 0:02:29.6]}
15... Qh6 {[%clk 0:02:09.9]} 16. Qe1 {[%clk 0:02:22.3]} 16... Ne7 {[%clk
0:02:07.8]} 17. Nh4 {[%clk 0:02:15.6]} 17... g6 {[%clk 0:02:04.4]} 18. Qg3
{[%clk 0:02:10.9]} 18... Kh8 {[%clk 0:01:44.6]} 19. Rf6 {[%clk 0:02:05.3]} 19...
Ng8 {[%clk 0:01:43.2]} 20. Rf3 {[%clk 0:01:27.2]} 20... f6 {[%clk 0:01:42.2]}
21. Raf1 {[%clk 0:01:23.9]} 21... Rad8 {[%clk 0:01:28]} 22. Qg4 {[%clk
0:01:11.6]} 22... Qg7 {[%clk 0:01:19.5]} 23. Rh3 {[%clk 0:01:11.5]} 23... Ne7
{[%clk 0:01:18.8]} 24. Qe6 {[%clk 0:01:09.2]} 24... f5 {[%clk 0:01:08.5]} 25.
Qxe7 {[%clk 0:01:04.6]} 25... f4 {[%clk 0:00:44.5]} 26. Qxg7+ {[%clk 0:00:49.2]}
26... Kxg7 {[%clk 0:00:44.6]} 27. exf4 {[%clk 0:00:43.8]} 27... exf4 {[%clk
0:00:45.5]} 28. Nf3 {[%clk 0:00:43.3]} 28... h6 {[%clk 0:00:44.6]} 29. Nd4
{[%clk 0:00:42.4]} 29... Rde8 {[%clk 0:00:44.6]} 30. Rhf3 {[%clk 0:00:40.1]}
30... g5 {[%clk 0:00:44.5]} 31. g3 {[%clk 0:00:39.9]} 31... Kf6 {[%clk
0:00:42.5]} 32. gxf4 {[%clk 0:00:39]} 32... g4 {[%clk 0:00:43.1]} 33. Rg3 {[%clk
0:00:35.5]} 33... Rg8 {[%clk 0:00:42.6]} 34. Nc2 {[%clk 0:00:33.5]} 34... h5
{[%clk 0:00:42.3]} 35. Ne3 {[%clk 0:00:33.4]} 35... c6 {[%clk 0:00:42.6]} 36. h4
{[%clk 0:00:30.3]} 36... Ra8 {[%clk 0:00:41.5]} 37. a4 {[%clk 0:00:29.4]} 37...
Ra6 {[%clk 0:00:41.2]} 38. Kh2 {[%clk 0:00:28.2]} 38... Rb6 {[%clk 0:00:41.5]}
39. Rb1 {[%clk 0:00:24.5]} 39... Re8 {[%clk 0:00:42]} 40. Nf5 {[%clk 0:00:22.3]}
40... d5 {[%clk 0:00:41.4]} 41. Nd6 {[%clk 0:00:20.1]} 41... Ra8 {[%clk
0:00:36.9]} 42. e5+ {[%clk 0:00:19.2]} 42... Ke6 {[%clk 0:00:37.4]} 43. c5
{[%clk 0:00:17.3]} 43... Rb4 {[%clk 0:00:37.2]} 44. f5+ {[%clk 0:00:09.3]} 44...
Kxe5 {[%clk 0:00:36.5]} 45. Re1+ {[%clk 0:00:08.4]} 45... Kd4 {[%clk 0:00:36.3]}
46. f6 {[%clk 0:00:08.5]} 46... Rf8 {[%clk 0:00:35.9]} 47. f7 {[%clk 0:00:08.5]}
47... Rxb3 {[%clk 0:00:35.3]} 48. Re8 {[%clk 0:00:08.4]} 48... Rxf7 {[%clk
0:00:35.7]} 49. Nxf7 {[%clk 0:00:08.9]} 49... Kxc5 {[%clk 0:00:36.6]} 50. Re7
{[%clk 0:00:08.4]} 50... b5 {[%clk 0:00:33.8]} 51. d4+ {[%clk 0:00:08.5]} 51...
Kc4 {[%clk 0:00:33.8]} 52. Rxb3 {[%clk 0:00:08.4]} 52... Kxb3 {[%clk 0:00:34.7]}
53. axb5 {[%clk 0:00:08.5]} 53... cxb5 {[%clk 0:00:35.6]} 54. Rb7 {[%clk
0:00:08.2]} 54... b4 {[%clk 0:00:35.9]} 55. Ne5 {[%clk 0:00:08]} 55... Kc3
{[%clk 0:00:36.4]} 56. Nc6 {[%clk 0:00:07.4]} 56... b3 {[%clk 0:00:36.8]} 57.
Rxb3+ {[%clk 0:00:06.1]} 57... Kxb3 {[%clk 0:00:36.8]} 58. Nxa5+ {[%clk
0:00:06.1]} 58... Kc3 {[%clk 0:00:37.1]} 59. Nc6 {[%clk 0:00:06.1]} 59... Kd3
{[%clk 0:00:36.8]} 60. Kg3 {[%clk 0:00:06.2]} 60... Ke4 {[%clk 0:00:37.7]} 61.
Kf2 {[%clk 0:00:04.7]} 61... Kf4 {[%clk 0:00:37.9]} 62. Kg2 {[%clk 0:00:04.9]}
62... Ke4 {[%clk 0:00:38.2]} 63. Kf2 {[%clk 0:00:04.8]} 63... Kd3 {[%clk
0:00:37]} 64. Kg3 {[%clk 0:00:04.8]} 64... Ke4 {[%clk 0:00:37.3]} 65. Kf2 {[%clk
0:00:04.7]} 1/2-1/2